Cogmind - Beta 16.1 @@@ ROGUE MODE // 2026.03.10 @ 00:33:53 Player: JuustuToug Result: Destroyed by Combat Programmer with EMDS Performance ------------- Evolutions (9) 4500 Regions Visited (23) 4600 Robots Destroyed (220) 1100 Value Destroyed (10409) 10409 Prototype IDs (84) 1680 Alien Tech Used (1) 200 Bonus (10901) 10901 TOTAL SCORE: 33390 Bonus ------- High Alert Combat Kills 1583 Follower Combat Kills 5449 Network Hubs Disabled 200 Registered with UFD 300 Met Optimus in HQ 500 Met Data Miner 300 MAIN.C Attacked Warlord 500 Warlord Defense Kills 100 Built Enhanced Grunts 300 A7 Reached Mainframe 300 Met R17 at Cetus 500 Met R17 at Research 2000 Friendly Fire -1131 Cogmind --------- Core Integrity 0/1600 Matter 280/300 Energy 70/100 System Corruption 20% Temperature Cool (0) Movement Flying (37) Location -1/Command Parts ------- > --- POWER (2) -------- (None) > --- PROPULSION (5) --- Field Propulsion Array Field Propulsion Array > --- UTILITY (15) ----- (None) > --- WEAPON (3) ------- (None) > --- INVENTORY (5) ---- Advanced Terrain Scan Processor Railgun Fusion Bomb Launcher Improved Remote Datajack Vortex Lance (38) Peak State ------------ > --- POWER ------------ Particle Reactor Light Quantum Reactor > --- PROPULSION ------- Improved Heavy Treads Biometal Medium Treads Armored Heavy Treads > --- UTILITY ---------- Experimental Cooling System High-capacity Storage Unit Experimental Sensor Array Advanced Signal Interpreter Experimental Core Analyzer Advanced Transmission Jammer Advanced Phase Shifter Wardrone Bay > --- WEAPON ----------- Nova Cannon Enhanced Nova Cannon Helical Railgun > --- INVENTORY -------- Light Particle Reactor Reinforced Quantum Reactor Armored Heavy Treads Experimental Coolant Injector Advanced Terrain Scan Processor Advanced Kinecellerator Improved Phase Shifter Centrium Heavy Armor Plating Phase Armor Graphene Brace Advanced Hacking Suite Drone Bay Railgun Helical Railgun Fusion Bomb Launcher Improved Remote Datajack Vortex Lance [Rating: 250] Favorites ----------- Power Angular Momentum Engine Engine Angular Momentum Engine Reactor Vortex Chain Reactor Propulsion Light Treads Treads Light Treads Leg Enhanced Biometal Leg Hover Unit Improved Antigrav System Flight Unit Field Propulsion Array Utility Advanced Signal Interpreter Device Experimental Sensor Array Storage Large Storage Unit Processor Advanced Signal Interpreter Hackware Improved Hacking Suite Protection Improved Medium Armor Plating Artifact Phase Armor Weapon Phase Cannon Energy Gun Medium Laser Energy Cannon Phase Cannon Ballistic Gun Railgun Ballistic Cannon Compact Linear Accelerator Launcher Long-range Missile Launcher Special Weapon Multitool Piercing Weapon Vortex Lance Build | -11 -10 -10 -9 -6 -6 -6 -6 -5 -5 -5 -5 -5 -4 -4 -4 -4 -4 -4 -3 -3 -2 -1 -1 ------- Run | Yrd Mat Sub Scr Fac Low Low Dat Pro Fac Upp Upp War Pro Fac Ext Cet Arc Hub Res Qua Res Acc Com Slots Evolved 18 | . . . . 8 . . . . 2 . . . . 2 . . . . 2 . 2 2 . Power 1 | . . . . . . . . . 1 . . . . . . . . . . . . . . Propulsion 3 | . . . . 3 . . . . . . . . . . . . . . . . . . . Utility 13 | . . . . 4 . . . . 1 . . . . 2 . . . . 2 . 2 2 . Weapon 1 | . . . . 1 . . . . . . . . . . . . . . . . . . . Parts Attached 187 | 7 6 7 6 27 . 1 . 2 12 6 3 17 6 3 3 8 2 4 25 5 2 18 17 Power 22 | 1 1 . 1 3 . . . . 1 1 . 1 . . . . . . 5 . 1 2 5 Engine 7 | 1 1 . 1 3 . . . . 1 . . . . . . . . . . . . . . Core . | . . . . . . . . . . . . . . . . . . . . . . . . Reactor 15 | . . . . . . . . . . 1 . 1 . . . . . . 5 . 1 2 5 Propulsion 39 | 2 . 3 4 5 . . . 1 3 1 1 2 3 . 1 2 . 1 2 2 . 3 3 Treads 35 | 2 . 3 4 5 . . . 1 3 1 1 1 3 . 1 2 . 1 2 2 . 3 . Leg 1 | . . . . . . . . . . . . 1 . . . . . . . . . . . Wheel . | . . . . . . . . . . . . . . . . . . . . . . . . Hover 1 | . . . . . . . . . . . . . . . . . . . . . . . 1 Flight 2 | . . . . . . . . . . . . . . . . . . . . . . . 2 Utility 81 | 2 2 2 1 14 . 1 . 1 3 1 1 10 2 2 2 3 2 2 9 1 . 12 8 Device 45 | 1 . 2 . 9 . 1 . . 2 . . 4 1 2 1 1 2 . 5 . . 8 6 Storage 6 | 1 2 . 1 . . . . . . . . . . . 1 . . . 1 . . . . Processor 12 | . . . . 3 . . . . . . . 4 . . . . . . 2 . . 2 1 Hackware 2 | . . . . . . . . . . . . . . . . . . 1 . . . 1 . Protection 15 | . . . . 2 . . . 1 1 1 1 2 1 . . 2 . 1 1 . . 1 1 Artifact 1 | . . . . . . . . . . . . . . . . . . . . 1 . . . Weapon 45 | 2 3 2 . 5 . . . . 5 3 1 4 1 1 . 3 . 1 9 2 1 1 1 Energy Gun 6 | 2 . . . . . . . . . . . 1 . 1 . 1 . . . . . . 1 Energy Cannon 14 | . . 2 . 2 . . . . 4 . . 1 . . . . . 1 1 1 1 1 . Ballistic Gun 17 | . 3 . . 1 . . . . 1 1 1 . 1 . . 2 . . 7 . . . . Ballistic Cannon 1 | . . . . . . . . . . . . 1 . . . . . . . . . . . Launcher 3 | . . . . 1 . . . . . 1 . . . . . . . . 1 . . . . Special Weapon 3 | . . . . 1 . . . . . 1 . . . . . . . . . 1 . . . Impact Weapon . | . . . . . . . . . . . . . . . . . . . . . . . . Slashing Weapon . | . . . . . . . . . . . . . . . . . . . . . . . . Piercing Weapon 1 | . . . . . . . . . . . . 1 . . . . . . . . . . . Special Melee Weapon . | . . . . . . . . . . . . . . . . . . . . . . . . Unidentified Prototypes 31 | . . 1 . 2 . 1 . . 1 . . 12 . 1 . 3 1 1 6 1 . 1 . Corrupted Parts 6 | . . . . . . . . . . . 2 . 3 . . 1 . . . . . . . System Corruption 30 | . . . . . . . . . . . 11 . 18 . . 1 . . . . . . . Parts Lost 34 | . . . . 1 . . . . 6 1 . 1 . . . . . 1 2 . . 3 19 Power 5 | . . . . . . . . . 1 . . . . . . . . . . . . 1 3 Propulsion 8 | . . . . . . . . . 3 1 . . . . . . . . . . . . 4 Utility 11 | . . . . . . . . . . . . . . . . . . . 2 . . 2 7 Weapon 10 | . . . . 1 . . . . 2 . . 1 . . . . . 1 . . . . 5 Highest Loss Streak 17 | . . . . 1 . . . . 4 1 . 1 . . . . . 1 1 . . 1 17 To Critical Strikes . | . . . . . . . . . . . . . . . . . . . . . . . . Average Backups 12 | . 9 15 14 13 15 15 15 15 13 14 15 9 7 7 7 10 11 11 10 10 10 16 17 Power 1 | . 1 1 1 1 1 1 1 1 . . 1 1 1 1 1 1 1 1 . 1 1 1 2 Propulsion 2 | . 3 5 4 2 4 4 4 3 2 2 2 1 1 2 1 1 2 2 1 1 1 . . Utility 2 | . 1 2 1 1 2 2 3 3 3 3 3 2 2 1 2 4 4 4 2 2 3 8 7 Weapon 4 | . 3 5 5 6 5 5 5 5 5 5 6 4 2 3 3 3 4 4 4 4 4 4 6 Tool/Special . | . . . . . . . . . . . . . . . . . . . . . . . . Unused Backups 53 | . 5 3 6 11 . 1 . . 1 . 1 2 1 . 1 3 . . 8 . 1 1 8 Power 11 | . . 1 . 5 . . . . . . 1 . . . 1 2 . . 1 . . . . Propulsion 4 | . 1 . 1 . . . . . . . . 1 . . . . . . . . 1 . . Utility 12 | . 3 . 3 . . . . . . . . . . . . 1 . . 2 . . 1 2 Weapon 25 | . 1 2 2 6 . . . . 1 . . 1 1 . . . . . 5 . . . 6 Tool/Special 1 | . . . . . . 1 . . . . . . . . . . . . . . . . . Average Slot Usage (%) 88 | . 99 90 77 91 100 100 82 100 97 95 100 94 87 80 84 84 84 83 84 84 79 64 75 Engine 5 | . 14 13 15 8 6 6 6 6 8 5 5 . . . . . . . . . . . . Reactor 3 | . . . . . . . . . . 1 5 5 5 5 5 5 5 5 8 9 8 8 7 Treads 23 | . 28 26 25 31 33 33 33 33 28 28 29 29 22 15 15 15 15 15 14 14 13 11 10 Device 17 | . 13 13 12 9 13 13 13 13 16 16 16 20 20 28 31 26 26 19 24 28 27 18 26 Storage 6 | . 14 13 12 6 6 6 6 6 5 5 5 5 5 5 5 5 5 5 4 4 4 4 3 Processor 8 | . . . . 12 13 13 13 13 11 11 11 6 11 10 10 10 10 10 7 9 8 8 7 Protection 3 | . . . . 4 6 6 6 6 5 5 5 6 2 . . 4 5 6 4 3 4 . . Energy Cannon 8 | . . 4 12 10 13 13 1 13 11 11 11 10 11 10 10 10 10 9 3 4 4 8 4 Ballistic Gun 6 | . 19 16 . 5 6 6 . 5 4 4 4 5 4 5 5 5 5 5 8 8 7 3 6 Peak Build Rating 250 | 7 10 23 30 67 66 69 69 69 80 95 96 130 133 146 148 156 164 168 185 187 187 250 202 Average Rating 102 | 5 8 14 23 61 65 68 56 68 75 85 94 117 130 142 143 151 159 163 178 178 181 240 181 On Entrance 100 | . 7 10 21 29 66 66 69 69 68 77 95 90 130 131 146 142 156 164 168 180 180 180 174 Avg Prop Armor Cover (%) 2 | . . . . . . . . . . . . . . . . . . 4 3 4 . 2 2 Naked Turns 35 | . . . . . . . . . . . . . . . . . . . . . . . 35 Heaviest Build 170 | 12 32 37 42 73 61 61 61 61 83 81 84 107 102 102 122 128 118 121 143 155 138 170 153 Greatest Support 190 | 40 40 40 50 120 120 120 120 120 127 134 134 141 167 167 172 187 187 190 190 185 185 185 155 Greatest Overweight (x) 2 | . . . 1 . . . . . 1 . . . . . . . . . . . . 1 2 Average Overweight (x) . | . . . . . . . . . . . . . . . . . . . . . . . . Largest Inventory Capacity 20 | 8 15 15 15 15 15 15 15 15 15 15 15 15 15 15 20 20 20 20 20 20 20 20 20 Average Capacity 16 | 7 12 15 15 15 15 15 15 15 15 15 15 15 15 15 15 20 20 20 20 20 20 20 19 Most Carried 20 | 1 15 15 15 15 15 15 15 15 15 15 15 15 15 15 19 20 20 20 20 20 20 20 20 Average Carried 15 | . 9 14 14 14 15 14 15 15 12 14 15 14 14 14 14 19 19 19 19 19 19 18 18 Final Capacity 20 | 8 15 15 15 15 15 15 15 15 15 15 15 15 15 15 20 20 20 20 20 20 20 20 5 Final Carried 20 | 1 15 15 15 15 15 15 15 15 13 15 15 15 15 15 19 20 20 20 20 20 20 18 5 Scrap Suit Usage (%) 1 | . . . . 1 . . . . . . . . . . . . . . . . . . . Class Distribution -------------------- 26% | Scavenger-Tank 25% | Skirmisher 22% | Mutant 9% | Tank 8% | Commander-Tank 7% | Scavenger-Skirmisher Dominant Class ---------------- Mutant | -10/Materials Mutant | -10/Subcaves Mutant | -9/Scraptown Skirmisher | -6/Factory Skirmisher | -6/Lower Caves Skirmisher | -6/Lower Caves Mutant | -6/Data Miner Skirmisher | -5/Proximity Caves Skirmisher | -5/Factory Skirmisher | -5/Upper Caves Scavenger-Skirmisher | -5/Upper Caves Tank | -5/Warlord Scavenger-Tank | -4/Proximity Caves Scavenger-Tank | -4/Factory Commander-Tank | -4/Extension Commander-Tank | -4/Cetus Commander-Tank | -4/Archives Scavenger-Tank | -4/Hub_04(d) Scavenger-Tank | -3/Research Scavenger-Tank | -3/Quarantine Scavenger-Tank | -2/Research Scavenger-Skirmisher | -1/Access Scavenger-Tank | -1/Command Resources | -11 -10 -10 -9 -6 -6 -6 -6 -5 -5 -5 -5 -5 -4 -4 -4 -4 -4 -4 -3 -3 -2 -1 -1 ----------- Run | Yrd Mat Sub Scr Fac Low Low Dat Pro Fac Upp Upp War Pro Fac Ext Cet Arc Hub Res Qua Res Acc Com Matter Collected 7427 | 211 382 220 30 837 156 55 . 304 354 347 249 299 365 45 56 133 138 214 861 586 225 802 558 Remotely . | . . . . . . . . . . . . . . . . . . . . . . . . Salvage Created 11526 | 138 750 . . 1824 340 . . 463 504 407 90 70 355 . 171 190 306 711 918 592 353 1490 1854 Parts 512 | 4 45 . . 90 6 . . 12 21 7 1 2 7 . 13 9 20 37 38 42 10 78 70 Haulers Intercepted 4 | . 2 . . . . . . . . . . . . . . . . 1 . . . 1 . Recyclers Shooed 5 | 1 . . . 2 . . . . 1 . . . . . . . . . 1 . . . . Parts Field Recycled . | . . . . . . . . . . . . . . . . . . . . . . . . Retrieved Matter . | . . . . . . . . . . . . . . . . . . . . . . . . Parts Self-Destructed 53 | . . 12 . . 5 4 . 9 . 8 15 . . . . . . . . . . . . Prevented 46 | . . . . . . 2 . 18 . 8 9 . 9 . . . . . . . . . . Parts Restored . | . . . . . . . . . . . . . . . . . . . . . . . . Kills | -11 -10 -10 -9 -6 -6 -6 -6 -5 -5 -5 -5 -5 -4 -4 -4 -4 -4 -4 -3 -3 -2 -1 -1 ------- Run | Yrd Mat Sub Scr Fac Low Low Dat Pro Fac Upp Upp War Pro Fac Ext Cet Arc Hub Res Qua Res Acc Com Combat Hostiles Destroyed 140 | . 10 . . 20 2 . . 9 8 5 1 1 7 . 1 3 . 7 16 11 3 21 15 Guns 37 | . 10 . . 4 1 . . . 1 . . 1 . . . 1 . . 7 3 1 2 6 Cannons 52 | . . . . 13 . . . . 7 1 . . . . 1 1 . 4 6 2 2 10 5 AOE 46 | . . . . 3 . . . 9 . 4 1 . 7 . . . . 1 3 6 . 9 3 Classes Destroyed 21 | 3 6 . . 5 . . . 2 1 1 . . . . 1 . . . 1 . . 1 . Worker 16 | 1 . . . 8 . . . . . . . . . . . . . 3 . . . 2 2 Builder 11 | . 2 . . 2 . . . . 2 . . . . . . . . 1 . . . 4 . Tunneler 5 | 2 2 . . . . . . . . . . . . . 1 . . . . . . . . Hauler 4 | . 2 . . . . . . . . . . . . . . . . 1 . . . 1 . Recycler 12 | 1 2 . . 4 . . . . . . . . . . . . . . . . 1 1 3 Minesweeper 1 | . . . . . . . . . . 1 . . . . . . . . . . . . . Mechanic 3 | . . . . 2 . . . . . . . . . . . . . . . . . . 1 Operator 14 | . 1 . . 1 . . . . . . . . . . 1 . 9 . 1 1 . . . Watcher 10 | . 2 . . 1 . . . . . . . . . . . . . 2 . 3 . 1 1 Swarmer 26 | . 2 . . 4 . . . 5 . . . . 1 . . . . 1 3 5 . 5 . Grunt 52 | . 8 . . 10 . . . 1 3 2 2 1 3 . . . . 2 5 . 3 5 7 Brawler 4 | . . . . . . . . 2 . 1 . . . . . . . . . . . . 1 Duelist 6 | . . . . . . . . 1 . 2 . . 2 . . . . . 1 . . . . Sentry 8 | . . . . 2 . . . . 1 . . . 1 . . . . 2 2 . . . . Demolisher 1 | . . . . . . . . . 1 . . . . . . . . . . . . . . Specialist 2 | . . . . 2 . . . . . . . . . . . . . . . . . . . Hunter 10 | . . . . 1 1 . . . . . . . . . . . . . 2 . . 4 2 Programmer 25 | . . . . 1 1 . . . 3 . . . . . . . . 2 1 6 . 6 5 Heavy 1 | . . . . . . . . . . . . . . . . . . . . . . 1 . Behemoth 1 | . . . . . . . . . . . . . . . 1 . . . . . . . . Cetus Guard 3 | . . . . . . . . . . . . . . . . 3 . . . . . . . Striker 2 | . . . . . . . . . . . . . . . . . . . 2 . . . . Packrat 4 | . . . . . 3 . . . . . . . 1 . . . . . . . . . . Thug 2 | . . . . 1 . . . . . . . . . . . . . 1 . . . . . Wizard 1 | . . . . . . . . 1 . . . . . . . . . . . . . . . Best Kill Streak 7 | 4 7 . . 6 1 . . 5 4 5 1 1 7 . 1 2 2 7 4 6 2 7 7 Combat Bots Only 7 | . 2 . . 3 1 . . 5 3 5 1 1 7 . 1 2 . 3 4 5 2 6 5 Max Kills in Single Turn 4 | 1 2 . . 3 1 . . 2 1 2 2 1 3 . 1 1 1 3 2 4 1 4 2 Gunslinging . | . . . . . . . . . . . . . . . . . . . . . . . . Exploded 4 | . . . . 1 . . . 2 . 2 1 . 3 . . . . 1 2 4 . 4 1 Melee . | . . . . . . . . . . . . . . . . . . . . . . . . Uniques/NPCs Destroyed . | . . . . . . . . . . . . . . . . . . . . . . . . Combat | -11 -10 -10 -9 -6 -6 -6 -6 -5 -5 -5 -5 -5 -4 -4 -4 -4 -4 -4 -3 -3 -2 -1 -1 -------- Run | Yrd Mat Sub Scr Fac Low Low Dat Pro Fac Upp Upp War Pro Fac Ext Cet Arc Hub Res Qua Res Acc Com Hostile Shots Fired 1276 | . 42 15 . 171 21 . . 18 126 1 9 72 . . 15 13 9 98 76 67 50 259 214 Missed 383 | . 17 5 . 56 7 . . 4 28 . 5 22 . . 1 3 2 22 25 25 23 80 58 Hits 893 | . 25 10 . 115 14 . . 14 98 1 4 50 . . 14 10 7 76 51 42 27 179 156 Melee 4 | . . . . . . . . . . . . 2 . . . . . . 2 . . . . Projectile 889 | . 25 10 . 115 14 . . 14 98 1 4 48 . . 14 10 7 76 49 42 27 179 156 AOE 40 | . . . . . . . . . 8 . . . . . . . . . 5 . . 3 24 Critical Strikes 56 | . 1 . . 4 . . . . 4 . . 2 . . . 2 1 3 2 4 . 11 22 Actively Blocked 25 | . . . . . . . . . . . . . . . . 1 . . 1 3 . 4 16 Part Disruptions 3 | . . . . . . . . . 1 . . 2 . . . . . . . . . . . Damage Taken 22074 | . 288 310 . 1855 249 . . 219 1807 36 89 742 . . 169 206 146 1908 1405 1047 611 4668 6319 Core 2440 | . 31 148 . 180 . . . . 164 . . 34 . . 11 . . 157 . 46 27 200 1442 Absorbed by Shields 1046 | . . . . . . . . . 420 . . 207 . . 161 139 44 . 75 . . . . Reduced by Siege Mode 373 | . . . . . . . . . . . . . . . . . . 28 68 35 7 133 102 Redirected to Core 319 | . . . . . . . . . . . . . . . . . . . . . . . 319 Regen/Repaired (Parts) 556 | . 11 . . 322 . . . . . . . 85 . . . . . . . 138 . . . Core Remaining (%) 80 | 100 . . 28 . . . . 78 . . . . 80 . . . . 85 . 96 98 . . Volleys Fired 679 | 10 64 27 . 89 24 . . 39 51 15 15 10 23 3 4 6 22 39 59 33 12 82 52 Largest 3 | 2 2 2 . 3 3 . . 3 3 3 3 3 3 1 3 3 3 3 3 3 3 3 3 Hottest 278 | 90 90 80 . 195 195 . . 195 195 208 218 210 210 85 210 240 210 235 183 186 186 278 278 Shots Fired 1466 | 20 130 32 . 162 66 . . 80 106 35 39 28 61 3 12 16 66 94 146 69 30 159 112 Gun 615 | 20 130 10 . 37 21 . . 9 26 10 10 10 18 . 4 6 22 26 87 39 22 49 59 Cannon 810 | . . 22 . 119 45 . . 64 80 21 27 18 37 3 8 10 44 67 57 27 8 104 49 Launcher 39 | . . . . 6 . . . 7 . 3 2 . 6 . . . . 1 2 2 . 6 4 Special 2 | . . . . . . . . . . 1 . . . . . . . . . 1 . . . Kinetic 527 | . 81 10 . 37 21 . . 9 26 10 10 10 18 . 4 5 22 26 87 39 22 49 41 Thermal 898 | 20 49 22 . 119 45 . . 64 80 21 27 18 37 3 8 11 44 67 57 27 8 104 67 Explosive 39 | . . . . 6 . . . 7 . 3 2 . 6 . . . . 1 2 2 . 6 4 Electromagnetic . | . . . . . . . . . . . . . . . . . . . . . . . . Robot Hit Streak 36 | 9 13 3 . 9 11 . . 4 6 5 1 10 4 . 7 8 8 5 10 12 8 13 36 Robot Miss Streak 5 | 1 3 3 . 4 4 . . . 2 5 1 1 2 . 1 1 5 5 5 4 1 4 3 Penetration Max 1 | . . . . . . . . . . 1 . 1 . . . 1 . 1 1 . 1 1 . Secondary Targets . | . . . . . . . . . . . . . . . . . . . . . . . . Shots Hit Robots 635 | 15 79 6 . 75 25 . . 3 49 14 1 23 8 . 8 8 33 27 68 29 21 71 72 Core Hits 423 | 5 32 . . 55 8 . . 20 19 15 6 10 23 . 5 7 19 27 41 19 12 52 48 Critical Kills 11 | . . . . 1 1 . . . . . . . . . . 1 1 4 1 1 . . 1 Critical Parts Destroyed 4 | . . . . . . . . . . . . . . . . . . 1 3 . . . . Critical Strikes 20 | . 4 . . 1 1 . . . 1 . . . . . . 1 1 5 4 1 . . 1 Burn 4 | . 4 . . . . . . . . . . . . . . . . . . . . . . Meltdown 7 | . . . . 1 . . . . . . . . . . . 1 1 3 . . . . 1 Destroy 9 | . . . . . 1 . . . 1 . . . . . . . . 2 4 1 . . . Melee Attacks 2 | . . . . . . . . . . . . . . . . . . . 2 . . . . Impact . | . . . . . . . . . . . . . . . . . . . . . . . . Slashing . | . . . . . . . . . . . . . . . . . . . . . . . . Piercing . | . . . . . . . . . . . . . . . . . . . . . . . . Entropic 2 | . . . . . . . . . . . . . . . . . . . 2 . . . . Sneak Attacks . | . . . . . . . . . . . . . . . . . . . . . . . . Combat Hostiles . | . . . . . . . . . . . . . . . . . . . . . . . . Follow-up Attacks . | . . . . . . . . . . . . . . . . . . . . . . . . Damage Inflicted 30221 | 179 1087 155 . 3922 695 . . 1344 1576 1223 397 719 1606 . 285 364 1068 1950 2932 1833 826 4482 3578 Guns 7501 | 179 1074 60 . 337 134 . . . 303 112 . 272 61 . 43 104 236 316 1219 635 548 765 1103 Cannons 12814 | . . 95 . 2037 561 . . 123 1248 288 36 447 208 . 194 260 832 847 1205 447 278 2109 1599 Explosions 9718 | . . . . 1520 . . . 1221 . 823 361 . 1337 . . . . 787 508 751 . 1546 864 Melee . | . . . . . . . . . . . . . . . . . . . . . . . . Ramming 188 | . 13 . . 28 . . . . 25 . . . . . 48 . . . . . . 62 12 Kinetic 6352 | . 656 60 . 337 134 . . . 303 112 . 272 61 . 43 104 236 316 1219 635 548 765 551 Thermal 14841 | 179 418 95 . 2401 561 . . 123 1248 288 36 447 208 . 194 260 832 1078 1329 606 278 2109 2151 Explosive 8284 | . . . . 1156 . . . 1221 . 823 361 . 1337 . . . . . 384 592 . 1546 864 Electromagnetic 556 | . . . . . . . . . . . . . . . . . . 556 . . . . . Impact . | . . . . . . . . . . . . . . . . . . . . . . . . Slashing . | . . . . . . . . . . . . . . . . . . . . . . . . Piercing . | . . . . . . . . . . . . . . . . . . . . . . . . Highest Corruption 20 | . 1 1 . . 1 1 1 1 8 8 19 19 18 . . 1 1 11 5 13 . 5 20 Average Corruption 5 | . 1 1 . . 1 1 1 1 5 8 13 19 17 . . 1 1 2 5 10 . 2 6 Corruption Purged 2 | . . 1 . . . . . . . . . . . . . . 1 . . . . . . Corruption Blocked . | . . . . . . . . . . . . . . . . . . . . . . . . Effects 239 | . 4 3 . . . 9 2 7 15 26 45 3 19 . . 3 1 4 18 40 . 19 21 Message Errors 59 | . . 1 . . . 2 1 3 3 7 9 1 6 . . 1 . 2 6 6 . 6 5 Matter Fused 46 | . . . . . . 1 . . 3 7 12 . 1 . . 1 . . 2 10 . 5 4 Heat Flow Errors 33 | . 1 . . . . 1 . 3 1 5 8 1 2 . . 1 . . 2 5 . 2 1 Energy Discharges 28 | . . . . . . 1 . . 2 2 5 . 3 . . . 1 1 4 8 . 1 . Parts Rejected 5 | . . . . . . . . . 1 . . . . . . . . . 1 1 . 1 1 Parts Fused 1 | . . . . . . . . . . . 1 . . . . . . . . . . . . Data Loss (minor) 29 | . 1 1 . . . 2 1 1 1 2 6 1 2 . . . . . 1 5 . 2 3 Data Loss (major) 9 | . . 1 . . . 1 . . 2 . . . 1 . . . . . . . . 1 3 Misfires 8 | . 2 . . . . . . . . . 1 . 4 . . . . . 1 . . . . Alerts 7 | . . . . . . 1 . . . 1 2 . . . . . . . 1 1 . 1 . Misdirections 1 | . . . . . . . . . . . . . . . . . . . . . . . 1 Weapon Failures 13 | . . . . . . . . . 2 2 1 . . . . . . 1 . 4 . . 3 Overload Shots 2 | . . . . 1 . . . . . . . . . . . 1 . . . . . . . Overflow Damage 1037 | . . . . 166 69 . . 72 31 33 43 1 39 . 1 . 58 12 79 100 . 281 52 Projectiles 454 | . . . . 30 69 . . 27 31 24 . 1 19 . . . 58 8 25 . . 110 52 Explosions 572 | . . . . 136 . . . 45 . 9 43 . 20 . . . . 4 54 100 . 161 . Melee 11 | . . . . . . . . . . . . . . . 1 . . . . . . 10 . Knockbacks . | . . . . . . . . . . . . . . . . . . . . . . . . Impact . | . . . . . . . . . . . . . . . . . . . . . . . . Kinetic . | . . . . . . . . . . . . . . . . . . . . . . . . Secondary . | . . . . . . . . . . . . . . . . . . . . . . . . Self-Inflicted Damage 388 | . . . . 148 . . . . . 19 7 . . . . . . 90 43 66 . 15 . Shots 9 | . . . . 3 . . . . . 1 1 . . . . . . 1 1 1 . 1 . Rammed 14 | . 1 . . 1 . . . . 3 . . . . . 2 . . . . . . 6 1 Targets Rammed 16 | . 1 . . 3 . . . . 3 . . . . . 2 . . . . . . 6 1 Kicked . | . . . . . . . . . . . . . . . . . . . . . . . . Crushed 2 | . . . . 2 . . . . . . . . . . . . . . . . . . . Highest Temperature 396 | 210 102 6 . 306 326 273 . 396 241 204 261 328 294 . 6 211 36 235 200 244 258 252 180 Average Temperature 73 | 100 29 6 . 82 98 148 . 109 66 42 70 48 111 . 2 40 10 65 17 40 86 84 81 Received Heat Transfer 1954 | . 147 69 . 591 . . . . 253 9 9 117 . . 40 17 14 144 82 . 126 147 189 Effects 5 | . . . . . . . . 3 . . . 1 1 . . . . . . . . . . Shutdowns 2 | . . . . . . . . 1 . . . 1 . . . . . . . . . . . Energy Bleed 1 | . . . . . . . . . . . . . 1 . . . . . . . . . . Interference 2 | . . . . . . . . 2 . . . . . . . . . . . . . . . Siege Activations 17 | . . . . . . . . . . . . . . . . . 1 1 4 1 1 4 5 Total Turns 257 | . . . . . . . . . . . . . . . . . 5 23 53 19 7 81 69 Longest Duration 39 | . . . . . . . . . . . . . . . . . 5 23 33 19 7 39 23 Martial Activations . | . . . . . . . . . . . . . . . . . . . . . . . . Shielding Activations . | . . . . . . . . . . . . . . . . . . . . . . . . Robots Disrupted . | . . . . . . . . . . . . . . . . . . . . . . . . Combat Hostiles . | . . . . . . . . . . . . . . . . . . . . . . . . Robots Corrupted . | . . . . . . . . . . . . . . . . . . . . . . . . Combat Hostiles . | . . . . . . . . . . . . . . . . . . . . . . . . Parts Fried 4 | . . . . . . . . . . 1 . . . . . . . 1 . . . 2 . Impact Corruptions 2 | . . . . . . . . . . . . . . . 1 . . . . . . 1 . Robots Melted 8 | . . . . 1 1 . . . . . . . . . . 1 1 3 . . . . 1 Combat Hostiles 5 | . . . . . 1 . . . . . . . . . . 1 . 2 . . . . 1 Parts Melted 34 | 1 3 . . 6 2 . . . 2 1 . . . . . . 4 4 1 . . 5 5 Heat Transferred 12941 | 495 1494 . . 2026 666 . . 148 1431 333 37 500 184 . 222 296 942 681 100 100 259 1776 1251 Parts Sabotaged . | . . . . . . . . . . . . . . . . . . . . . . . . Parts Stolen . | . . . . . . . . . . . . . . . . . . . . . . . . Parts Stripped . | . . . . . . . . . . . . . . . . . . . . . . . . Power Chain Reactions 5 | . . . . . . . . . . . . . . . . . . 1 2 2 . . . Alert | -11 -10 -10 -9 -6 -6 -6 -6 -5 -5 -5 -5 -5 -4 -4 -4 -4 -4 -4 -3 -3 -2 -1 -1 ------- Run | Yrd Mat Sub Scr Fac Low Low Dat Pro Fac Upp Upp War Pro Fac Ext Cet Arc Hub Res Qua Res Acc Com Maximum Alert Level 4 | . . . . 3 . . . . 1 . . . . 1 2 1 1 4 4 2 2 3 3 Low Security (%) 31 | 100 100 . . 43 . . . . 64 . . . . 47 50 5 5 31 . . . 6 . Level 1 26 | . . . . 18 . . . . 35 . . . . 52 44 94 94 12 . 29 50 37 . Level 2 29 | . . . . 26 . . . . . . . . . . 5 . . 5 73 70 49 43 54 Level 3 9 | . . . . 10 . . . . . . . . . . . . . 23 19 . . 12 45 Level 4 2 | . . . . . . . . . . . . . . . . . . 26 6 . . . . Level 5 . | . . . . . . . . . . . . . . . . . . . . . . . . High Security . | . . . . . . . . . . . . . . . . . . . . . . . . Max Security . | . . . . . . . . . . . . . . . . . . . . . . . . Peak Influence 1346 | 10 95 . . 719 . . . . 325 . . . . 380 422 393 328 1346 1111 623 547 825 817 Initial 685 | . 3 . . . . . . . 134 . . . . 380 54 192 123 84 685 623 265 288 515 Average 366 | 2 34 . . 283 . . . . 126 . . . . 250 209 316 280 656 667 486 417 432 663 Influence Increases 12547 | 20 406 21 . 1393 60 131 . 597 613 263 469 233 295 352 1146 391 369 1766 1271 610 365 1194 582 Destroy 0b10 Robot/C 5360 | . 200 20 . 680 40 80 . 400 220 180 280 40 200 20 480 160 80 500 560 220 100 600 300 Destroy 0b10 Robot/NC 480 | 20 55 . . 95 . . . . 15 10 . . 5 . 50 10 45 60 5 20 5 45 40 Destroy Leader 926 | . 58 . . 162 20 10 . 40 60 . 20 . 20 10 46 . . 118 110 36 20 134 62 Allied During Kill 2067 | . . 1 . 119 . 41 . 157 46 73 169 13 55 18 451 170 125 416 153 2 24 34 . Successful Hack 141 | . 15 . . 26 . . . . . . . . . . . . . 12 14 74 . . . Select Force Hacks 30 | . 30 . . . . . . . . . . . . . . . . . . . . . . Disable Machine 750 | . . . . 105 . . . . 15 . . . . . 15 15 75 225 45 120 60 45 30 Anti-Garrison Action 300 | . . . . . . . . . 150 . . . . . . . . . 150 . . . . Destroy Structure 1803 | . 3 . . 146 . . . . 92 . . . . 4 104 36 44 420 234 138 126 321 135 Advance Influence 300 | . . . . . . . . . . . . . . 300 . . . . . . . . . Lose Combat Pursuer 390 | . 45 . . 60 . . . . 15 . . 180 15 . . . . 15 . . 30 15 15 Influence Decreases 11986 | 15 411 21 . 689 720 142 33 383 630 337 496 242 254 368 914 426 436 702 1469 1245 358 868 827 Entered New Map 3066 | . 2 . . . 262 9 33 . 80 74 24 96 87 48 58 152 186 158 621 485 208 192 291 Time Decay 6619 | 15 409 21 . 427 458 133 . 343 338 253 458 103 147 150 506 254 230 334 598 410 150 556 326 Lost Part 340 | . . . . 10 . . . . 60 10 . 10 . . . . . 10 20 . . 30 190 Lost Ally 1211 | . . . . 252 . . . 40 152 . 14 33 20 20 200 20 20 200 80 50 . 90 20 Purge Threat 750 | . . . . . . . . . . . . . . 150 150 . . . 150 300 . . . Squads Dispatched 66 | . 3 . . 17 . . . . 16 . . . . 1 3 . . 6 8 2 1 4 5 Investigation 15 | . 2 . . 4 . . . . 4 . . . . 1 . . . . 4 . . . . Extermination 16 | . . . . 3 . . . . 3 . . . . . . . . 2 . 2 . 4 2 Reinforcement 17 | . 1 . . 4 . . . . 2 . . . . . 3 . . 2 4 . . . 1 Assault 7 | . . . . . . . . . 2 . . . . . . . . 2 . . 1 . 2 Garrison 11 | . . . . 6 . . . . 5 . . . . . . . . . . . . . . Intercept . | . . . . . . . . . . . . . . . . . . . . . . . . Searches Triggered . | . . . . . . . . . . . . . . . . . . . . . . . . Data Miner Redirects 2 | . . . . . . . . . . . . . . . . . . 2 . . . . . Construction Impeded 1 | . . . . . . . . . . . . . . . 1 . . . . . . . . Haulers Reinforced 2 | . . . . 1 . . . . . . . . . . . . . . 1 . . . . Active Scanning Responses . | . . . . . . . . . . . . . . . . . . . . . . . . Cargo Convoy Interrupts . | . . . . . . . . . . . . . . . . . . . . . . . . Stealth | -11 -10 -10 -9 -6 -6 -6 -6 -5 -5 -5 -5 -5 -4 -4 -4 -4 -4 -4 -3 -3 -2 -1 -1 --------- Run | Yrd Mat Sub Scr Fac Low Low Dat Pro Fac Upp Upp War Pro Fac Ext Cet Arc Hub Res Qua Res Acc Com Distress Signals 15 | . 1 . . 1 . . . . 4 . . . . . 3 2 . . 3 . 1 . . Communications Jammed 267 | . . . . . . . . . . . . . . . 19 107 1 99 17 16 3 5 . Distress Signals 261 | . . . . . . . . . . . . . . . 19 107 1 99 17 16 2 . . Times Spotted 391 | . 26 7 . 41 2 4 . 14 17 8 13 75 3 . 17 10 9 25 40 16 8 31 25 Peak Tracking Total 15 | . 4 1 . 6 1 4 . 9 4 7 7 15 8 . 4 5 2 5 5 6 5 6 6 Tactical Retreats 16 | . 2 . . 3 . . . . 1 . . 5 1 . . . . 1 . . 1 1 1 Traps | -11 -10 -10 -9 -6 -6 -6 -6 -5 -5 -5 -5 -5 -4 -4 -4 -4 -4 -4 -3 -3 -2 -1 -1 ------- Run | Yrd Mat Sub Scr Fac Low Low Dat Pro Fac Upp Upp War Pro Fac Ext Cet Arc Hub Res Qua Res Acc Com Traps Triggered 11 | . 3 2 . . . . . . . . . 1 . . . . . 1 2 . . 2 . Indirectly . | . . . . . . . . . . . . . . . . . . . . . . . . Trap Hack Attempts . | . . . . . . . . . . . . . . . . . . . . . . . . Triggered . | . . . . . . . . . . . . . . . . . . . . . . . . Disarmed . | . . . . . . . . . . . . . . . . . . . . . . . . Reprogrammed . | . . . . . . . . . . . . . . . . . . . . . . . . Reused . | . . . . . . . . . . . . . . . . . . . . . . . . Traps Extracted . | . . . . . . . . . . . . . . . . . . . . . . . . Installed . | . . . . . . . . . . . . . . . . . . . . . . . . Triggered . | . . . . . . . . . . . . . . . . . . . . . . . . Most Traps Carried 1 | . . . 1 1 . . . . . . . . . . . . . . . . . . . Machines | -11 -10 -10 -9 -6 -6 -6 -6 -5 -5 -5 -5 -5 -4 -4 -4 -4 -4 -4 -3 -3 -2 -1 -1 ---------- Run | Yrd Mat Sub Scr Fac Low Low Dat Pro Fac Upp Upp War Pro Fac Ext Cet Arc Hub Res Qua Res Acc Com Machines Disabled 60 | . . 1 . 7 . . . 1 2 . 1 . 2 . 3 1 5 15 5 8 4 3 2 Max in Single Turn 5 | . . 1 . 3 . . . . 1 . . . 2 . . 1 1 5 1 1 2 1 1 Garrison Access 3 | . . . . . . . . . 1 . . . . . . . . 1 1 . . . . Network Hub 1 | . . . . . . . . . . . . . . . . . . 1 . . . . . Machines Repaired . | . . . . . . . . . . . . . . . . . . . . . . . . Machines Dismantled . | . . . . . . . . . . . . . . . . . . . . . . . . Machines Sabotaged . | . . . . . . . . . . . . . . . . . . . . . . . . Overloaded Fab Kills . | . . . . . . . . . . . . . . . . . . . . . . . . Hacking | -11 -10 -10 -9 -6 -6 -6 -6 -5 -5 -5 -5 -5 -4 -4 -4 -4 -4 -4 -3 -3 -2 -1 -1 --------- Run | Yrd Mat Sub Scr Fac Low Low Dat Pro Fac Upp Upp War Pro Fac Ext Cet Arc Hub Res Qua Res Acc Com Machines Accessed 66 | . 8 1 7 11 . . 3 . 7 1 . 3 . 1 2 1 . 5 4 9 1 2 . Terminals 28 | . 6 . . 5 . . . . 3 . . . . . 2 1 . 4 . 5 . 2 . Fabricators 2 | . . . . 1 . . . . . . . . . . . . . . 1 . . . . Repair Stations 5 | . 1 . . 2 . . . . . . . . . . . . . . . 2 . . . Recycling Units 10 | . 1 . . 3 . . . . 4 . . . . 1 . . . . 1 . . . . Scanalyzers 2 | . . . . . . . . . . . . . . . . . . . . 2 . . . Garrison Access 4 | . . . . . . . . . . . . . . . . . . 1 2 . 1 . . Total Hacks 167 | . 20 1 15 24 . . 27 . 10 1 . 10 . 5 3 2 . 11 7 25 1 5 . Successful 99 | . 12 1 15 14 . . 27 . 4 1 . 10 . 2 1 . . 2 2 8 . . . Failed 68 | . 8 . . 10 . . . . 6 . . . . 3 2 2 . 9 5 17 1 5 . Catastrophic 19 | . 1 . . 2 . . . . 1 . . . . . 2 1 . 4 . 6 1 1 . Database Lockouts . | . . . . . . . . . . . . . . . . . . . . . . . . Manual 68 | . 18 . . 13 . . . . 10 . . 1 . 4 4 1 . 8 2 6 . 1 . Terminals 64 | . 17 . . 9 . . . . 3 . . . . 2 3 2 . 8 1 14 . 5 . Fabricators 4 | . . . . 3 . . . . . . . . . . . . . . 1 . . . . Repair Stations 18 | . 2 . . 8 . . . . . . . . . . . . . . . 8 . . . Recycling Units 16 | . 1 . . 4 . . . . 7 . . . . 3 . . . . 1 . . . . Scanalyzers 3 | . . . . . . . . . . . . . . . . . . . . 3 . . . Garrison Access 8 | . . . . . . . . . . . . . . . . . . 3 4 . 1 . . Terminal Hacks 64 | . 2 1 15 3 . . 27 . . 1 . 10 . 1 1 . . . . 3 . . . Record 20 | . . . 14 . . . 6 . . . . . . . . . . . . . . . . Part Schematic 11 | . . . . . . . 11 . . . . . . . . . . . . . . . . Robot Schematic 7 | . . . . . . . 7 . . . . . . . . . . . . . . . . Prototype ID Bank 14 | . 2 . . . . . 3 . . . . 9 . . . . . . . . . . . Open Door 2 | . . . . . . . . . . 1 . 1 . . . . . . . . . . . Branch Access Points 1 | . . . . 1 . . . . . . . . . . . . . . . . . . . Terminal Index 1 | . . . . 1 . . . . . . . . . . . . . . . . . . . Alert Level 3 | . . . . 1 . . . . . . . . . 1 . . . . . 1 . . . Unreport Threat 3 | . . . . . . . . . . . . . . . 1 . . . . 2 . . . Proto ID Catalog 2 | . . 1 1 . . . . . . . . . . . . . . . . . . . . Fabricator Hacks 2 | . . . . 1 . . . . . . . . . . . . . . 1 . . . . Network Status 1 | . . . . 1 . . . . . . . . . . . . . . . . . . . Build 1 | . . . . . . . . . . . . . . . . . . . 1 . . . . Repair Station Hacks 11 | . 2 . . 6 . . . . . . . . . . . . . . . 3 . . . Scan Component 7 | . 1 . . 3 . . . . . . . . . . . . . . . 3 . . . Repair 4 | . 1 . . 3 . . . . . . . . . . . . . . . . . . . Recycling Unit Hacks . | . . . . . . . . . . . . . . . . . . . . . . . . Scanalyzer 1 | . . . . . . . . . . . . . . . . . . . . 1 . . . Retrieve Study 1 | . . . . . . . . . . . . . . . . . . . . 1 . . . Garrison Access Hacks 1 | . . . . . . . . . . . . . . . . . . 1 . . . . . Seal Access 1 | . . . . . . . . . . . . . . . . . . 1 . . . . . Unauthorized Hacks 20 | . 8 . . 4 . . . . 4 . . . . 1 . . . 1 1 1 . . . Terminals 10 | . 7 . . 1 . . . . . . . . . . . . . 1 . 1 . . . Botnet 5 | . 2 . . 1 . . . . . . . . . . . . . 1 . 1 . . . Skim 5 | . 5 . . . . . . . . . . . . . . . . . . . . . . Fabricators 1 | . . . . 1 . . . . . . . . . . . . . . . . . . . Liberate 1 | . . . . 1 . . . . . . . . . . . . . . . . . . . Repair Stations . | . . . . . . . . . . . . . . . . . . . . . . . . Recycling Units 9 | . 1 . . 2 . . . . 4 . . . . 1 . . . . 1 . . . . Tunnel 1 | . 1 . . . . . . . . . . . . . . . . . . . . . . Fedlink 5 | . . . . 1 . . . . 3 . . . . 1 . . . . . . . . . Scrapoids 3 | . . . . 1 . . . . 1 . . . . . . . . . 1 . . . . Scanalyzers . | . . . . . . . . . . . . . . . . . . . . . . . . Garrison Access . | . . . . . . . . . . . . . . . . . . . . . . . . Data Cores Recovered 1 | . . . . . . . . . . . . . . . . . . . 1 . . . . Used 1 | . . . . . . . . . . . . . . . . . . . 1 . . . . Hacking Detections 36 | . 7 . . 6 . . . . 1 . . . . 1 2 1 . 4 2 9 1 2 . Full Trace Events 2 | . . . . 2 . . . . . . . . . . . . . . . . . . . Feedback Events . | . . . . . . . . . . . . . . . . . . . . . . . . Feedback Blocked . | . . . . . . . . . . . . . . . . . . . . . . . . Robot Schematics Acquired 7 | . . . . . . . 7 . . . . . . . . . . . . . . . . Robots Built . | . . . . . . . . . . . . . . . . . . . . . . . . Authchips . | . . . . . . . . . . . . . . . . . . . . . . . . Time . | . . . . . . . . . . . . . . . . . . . . . . . . Total Robot Build Rating . | . . . . . . . . . . . . . . . . . . . . . . . . Part Schematics Acquired 11 | . . . . . . . 11 . . . . . . . . . . . . . . . . Parts Built 1 | . . . . . . . . . . . . . . . . . . . 1 . . . . Authchips . | . . . . . . . . . . . . . . . . . . . . . . . . Time 102 | . . . . . . . . . . . . . . . . . . . 102 . . . . Total Part Build Rating 8 | . . . . . . . . . . . . . . . . . . . 8 . . . . Part Studies Acquired 1 | . . . . . . . . . . . . . . . . . . . . 1 . . . Parts Repaired 4 | . 1 . . 3 . . . . . . . . . . . . . . . . . . . Time 128 | . 26 . . 102 . . . . . . . . . . . . . . . . . . . Parts Recycled . | . . . . . . . . . . . . . . . . . . . . . . . . Recycled Matter . | . . . . . . . . . . . . . . . . . . . . . . . . Retrieved Matter . | . . . . . . . . . . . . . . . . . . . . . . . . Retrieved Components . | . . . . . . . . . . . . . . . . . . . . . . . . Parts Scanalyzed . | . . . . . . . . . . . . . . . . . . . . . . . . Part Schematics Acquired . | . . . . . . . . . . . . . . . . . . . . . . . . Parts Damaged . | . . . . . . . . . . . . . . . . . . . . . . . . Bothacking | -11 -10 -10 -9 -6 -6 -6 -6 -5 -5 -5 -5 -5 -4 -4 -4 -4 -4 -4 -3 -3 -2 -1 -1 ------------ Run | Yrd Mat Sub Scr Fac Low Low Dat Pro Fac Upp Upp War Pro Fac Ext Cet Arc Hub Res Qua Res Acc Com Used RIF Installer . | . . . . . . . . . . . . . . . . . . . . . . . . Robots Hacked 2 | . . . . . . . . . . 1 . . . . . . . . . 1 . . . Non-combat . | . . . . . . . . . . . . . . . . . . . . . . . . Combat 1 | . . . . . . . . . . 1 . . . . . . . . . . . . . Robot Hacks Applied 1 | . . . . . . . . . . 1 . . . . . . . . . . . . . parse_system 1 | . . . . . . . . . . 1 . . . . . . . . . . . . . Manual 1 | . . . . . . . . . . . . . . . . . . . . 1 . . . Relay Couplers Released 6 | . . . . 4 . . . . 1 . . . . . . . . . 1 . . . . Machine Destruction 2 | . . . . . . . . . 1 . . . . . . . . . 1 . . . . Programmers 4 | . . . . 4 . . . . . . . . . . . . . . . . . . . Fabnet Peak Effective % . | . . . . . . . . . . . . . . . . . . . . . . . . Robots Rewired 18 | . . . . . . . . 2 . 1 2 . 2 . 11 . . . . . . . . Allies Hacked 5 | . . . . . . . . . 4 . . . . . . . . . . 1 . . . Hacks Repelled . | . . . . . . . . . . . . . . . . . . . . . . . . Allies | -11 -10 -10 -9 -6 -6 -6 -6 -5 -5 -5 -5 -5 -4 -4 -4 -4 -4 -4 -3 -3 -2 -1 -1 -------- Run | Yrd Mat Sub Scr Fac Low Low Dat Pro Fac Upp Upp War Pro Fac Ext Cet Arc Hub Res Qua Res Acc Com Total Allies 103 | . . 4 . 11 . 4 . 8 15 8 3 . 8 3 18 5 . . 11 1 4 . . Largest Group 16 | . . 3 3 8 . 4 4 6 6 5 7 6 4 5 12 16 15 13 5 3 4 4 . Highest-Rated Group 1072 | . . 57 57 236 . 324 324 384 384 373 421 392 324 371 657 1072 1001 746 326 151 324 324 . Highest-Rated Ally 159 | . . 19 19 31 . 81 81 81 81 81 81 81 81 81 159 159 159 96 81 64 81 81 . Initial UFD Resources 65 | . . . . 22 29 29 29 32 32 45 45 45 49 49 59 59 59 59 61 58 62 65 65 Total Orders 13 | . . . . 1 . . . . . . . 2 . . . . . . . . . 9 1 STAY 1 | . . . . . . . . . . . . 1 . . . . . . . . . . . FOLLOW 1 | . . . . . . . . . . . . 1 . . . . . . . . . . . EXPLORE 4 | . . . . 1 . . . . . . . . . . . . . . . . . 2 1 RETURN 7 | . . . . . . . . . . . . . . . . . . . . . . 7 . Ally Attacks 853 | . . 15 . 101 . 6 . 59 53 16 31 29 33 9 131 34 43 143 72 7 2 69 . Total Damage 24715 | . . 222 . 1907 . 165 . 1445 1288 776 1071 654 665 177 5267 1268 1132 4109 1874 195 183 2317 . Kills 161 | . . 3 . 15 . 4 . 12 6 6 13 1 4 1 32 8 4 27 13 . 2 10 . Allies Corrupted 4 | . . . . 2 . . . . 1 . . . . . . . . 1 . . . . . Allies Melted 3 | . . . . 1 . . . . . . . 1 . . . . . 1 . . . . . Intel | -11 -10 -10 -9 -6 -6 -6 -6 -5 -5 -5 -5 -5 -4 -4 -4 -4 -4 -4 -3 -3 -2 -1 -1 ------- Run | Yrd Mat Sub Scr Fac Low Low Dat Pro Fac Upp Upp War Pro Fac Ext Cet Arc Hub Res Qua Res Acc Com Active Infowar (turns) 25401 | 7 1379 1814 2197 2277 1157 1004 147 1287 980 725 1151 1562 777 308 1365 556 497 744 1910 977 286 1632 662 Optics 2 | . . . . . . . . . . . . 2 . . . . . . . . . . . Sensors 14741 | . . . . 1526 1114 986 147 1207 757 643 1082 1104 757 304 642 . 228 571 1640 680 111 1241 1 Terrain 3 | . . . . . . . . . . . . . . . . . . . . . . 1 2 Seismic 7540 | 7 1379 1814 2197 618 . . . . . . . . . . 723 556 246 . . . . . . Machine Analysis 8972 | . . . . 2099 1157 1004 147 1287 980 725 1151 422 . . . . . . . . . . . Cloaking 193 | . . . . . . . . . . . . 193 . . . . . . . . . . . Jamming 9310 | . . . . . . . . . . . . . 413 308 1365 556 497 744 1910 976 286 1593 662 Robot Analysis Total . | . . . . . . . . . . . . . . . . . . . . . . . . Derelict Logs Recovered 6 | . . . . . 2 1 . 1 . 1 1 . . . . . . . . . . . . Drone Launches 14 | . . . . 2 . . . . . . . . . . . . . . . . . 10 2 Drone Recoveries 8 | . . . . . . . . . . . . . . . . . . . . . . 8 . Exploration | -11 -10 -10 -9 -6 -6 -6 -6 -5 -5 -5 -5 -5 -4 -4 -4 -4 -4 -4 -3 -3 -2 -1 -1 ------------- Run | Yrd Mat Sub Scr Fac Low Low Dat Pro Fac Upp Upp War Pro Fac Ext Cet Arc Hub Res Qua Res Acc Com Turns Passed 25745 | 105 1405 1880 2197 2277 1157 1004 147 1287 980 725 1151 1626 777 308 1365 556 497 744 1912 985 300 1632 728 Spaces Moved 12996 | 39 640 1093 1323 1107 669 620 89 658 438 387 578 813 353 169 665 203 193 367 960 507 149 687 289 Core 76 | 5 . . . . . . . . . . . . . . . . . . . . . . 71 Treads 12914 | 34 640 1093 1323 1107 669 620 89 658 438 387 578 813 353 169 665 203 193 367 960 507 149 687 212 Legs . | . . . . . . . . . . . . . . . . . . . . . . . . Wheels . | . . . . . . . . . . . . . . . . . . . . . . . . Hover . | . . . . . . . . . . . . . . . . . . . . . . . . Flight 6 | . . . . . . . . . . . . . . . . . . . . . . . 6 Fastest Speed 37 | 50 160 160 160 160 160 160 160 160 160 162 164 162 163 163 163 163 163 155 155 155 155 155 37 Average Speed 162 | 145 160 160 164 160 160 160 160 160 160 162 164 165 164 163 163 163 163 161 157 158 155 179 162 Slowest Speed 330 | 160 160 160 250 160 160 160 160 160 240 164 164 166 167 163 163 163 163 163 163 163 155 250 330 Overloaded Moves . | . . . . . . . . . . . . . . . . . . . . . . . . Propulsion Burnouts . | . . . . . . . . . . . . . . . . . . . . . . . . Robots Hopped 1 | . . . . . . . . . . . . . . . . . . . . . . . 1 Potential Cave-ins 8 | . . . . . . . . 2 . . . . . . . . . . 4 . . 2 . Cave-ins Triggered . | . . . . . . . . . . . . . . . . . . . . . . . . Exploration Rate (%) 52 | 3 81 61 87 31 68 87 68 75 17 61 68 85 57 4 87 68 83 38 32 63 6 20 13 Regions Visited 23 Branch Regions 16 Pre-discovered Areas 5 | . 1 . . . 1 . 1 1 1 . . . . . . . . . . . . . . Known Exits Taken 19 | . . . . 1 1 1 1 1 1 1 1 1 1 1 1 1 1 1 1 1 1 1 . Unknown Exits Taken 4 | 1 1 1 1 . . . . . . . . . . . . . . . . . . . . Scrap Searched 32 | . . 10 9 . . 4 . 3 . 1 2 . 3 . . . . . . . . . . Spaces Dug 328 | . . 7 . 43 16 . . 44 20 4 40 . 32 1 . . . 22 36 29 1 29 4 Terrain Destroyed 1322 | . . 15 . 165 26 . . 103 36 51 64 5 87 3 4 2 28 264 114 86 34 156 79 Melee . | . . . . . . . . . . . . . . . . . . . . . . . . Projectile 554 | . . 15 . 54 26 . . 60 36 17 43 5 42 3 4 2 28 48 63 33 12 48 15 AOE 768 | . . . . 111 . . . 43 . 34 21 . 45 . . . . 216 51 53 22 108 64 Terrain Rammed . | . . . . . . . . . . . . . . . . . . . . . . . . Walls Destroyed . | . . . . . . . . . . . . . . . . . . . . . . . . Machines Disabled . | . . . . . . . . . . . . . . . . . . . . . . . . Actions | -11 -10 -10 -9 -6 -6 -6 -6 -5 -5 -5 -5 -5 -4 -4 -4 -4 -4 -4 -3 -3 -2 -1 -1 --------- Run | Yrd Mat Sub Scr Fac Low Low Dat Pro Fac Upp Upp War Pro Fac Ext Cet Arc Hub Res Qua Res Acc Com Total 16429 | 64 896 1188 1355 1491 711 632 94 816 627 449 748 1074 505 198 937 420 326 437 1247 629 195 943 447 Wait 1764 | 8 151 39 9 172 13 7 . 93 76 21 73 188 73 16 176 181 101 19 114 63 27 80 64 Move 12971 | 38 639 1092 1322 1106 668 619 88 657 437 386 577 812 352 168 664 202 192 366 959 506 148 686 287 Hop 1 | . . . . . . . . . . . . . . . . . . . . . . . 1 Pick Up 149 | 1 22 3 8 27 . 1 . 1 11 4 2 4 5 1 6 8 1 1 19 2 1 16 5 Fast Attach 117 | 7 2 2 1 12 . 1 3 . 4 1 . 18 5 5 1 4 4 1 19 3 1 12 11 Attach 54 | . . . . 11 . . . . 10 1 . 2 2 1 . 1 . 1 6 2 1 6 10 Detach 26 | . . 1 . 5 . . . . 3 . . 6 . . . . 1 . 1 1 1 2 5 Swap 237 | . 6 17 5 35 6 2 . 14 18 11 8 8 7 . 2 4 1 9 30 14 1 33 6 Drop 214 | . 11 7 10 28 . 2 3 2 10 1 3 26 13 4 5 14 4 1 38 5 3 19 5 Fire 679 | 10 64 27 . 89 24 . . 39 51 15 15 10 23 3 4 6 22 39 59 33 12 82 52 Melee 2 | . . . . . . . . . . . . . . . . . . . 2 . . . . Ram . | . . . . . . . . . . . . . . . . . . . . . . . . Kick . | . . . . . . . . . . . . . . . . . . . . . . . . Crush 16 | . 1 . . 3 . . . . 3 . . . . . 2 . . . . . . 6 1 Escape Stasis . | . . . . . . . . . . . . . . . . . . . . . . . . Rewire 192 | . . . . . . . . 10 . 9 70 . 25 . 77 . . . . . . 1 . Trap . | . . . . . . . . . . . . . . . . . . . . . . . . Miscellaneous 7 | . . . . 3 . . . . 4 . . . . . . . . . . . . . . Route ------- -11/Scrapyard -10/Materials (discovered 5 exits: *Mat x3 / [*Min] / *Sub) -10/Subcaves (discovered 4 exits: *Mat x2 / *Scr x2) -9/Scraptown (discovered 2 exits: *Fac x2) -6/Factory (discovered 3 exits: *Fac / *Low x2) -6/Lower Caves (discovered 2 exits: *Low / *Dat) -6/Lower Caves (discovered 2 exits: *Fac / *Dat) -6/Data Miner -5/Proximity Caves -5/Factory (discovered 3 exits: Fac / *Upp x2) -5/Upper Caves -5/Upper Caves -5/Warlord -4/Proximity Caves -4/Factory (discovered 2 exits: Res / *Ext) -4/Extension (discovered 3 exits: *Res x2 / *Cet) -4/Cetus (discovered 2 exits: *Res / *Arc) -4/Archives (discovered 3 exits: *Res / *Hub x2) -4/Hub_04(d) -3/Research (discovered 2 exits: *Res / *Qua) -3/Quarantine -2/Research -1/Access -1/Command History --------- Turn | Location | Event 9 | -11/Scrapyard | Discovered new exit (range 14) 106 | -11/Scrapyard | Entered Materials 107 | -10/Materials | Met a group of wandering Federalists 124 | -10/Materials | Discovered new exit (range 9) 310 | -10/Materials | Build established: Mutant 628 | -10/Materials | Discovered new exit (range 13) 813 | -10/Materials | Discovered new exit (range 14) 936 | -10/Materials | Repaired Seismic Detector 995 | -10/Materials | Identified exit to Materials 1036 | -10/Materials | Learned location of 3 exits from Materials 1090 | -10/Materials | Learned 2 Mines zone layouts 1170 | -10/Materials | Learned 4 Subcaves zone layouts 1511 | -10/Materials | Entered Subcaves 1512 | -10/Subcaves | Continued accompanying wandering Federalists (5) 1512 | -10/Subcaves | Approached by a straggling Scientist 1512 | -10/Subcaves | Identified exit to Materials 1772 | -10/Subcaves | Wandering Federalist uncovered a shortcut to Scraptown 1956 | -10/Subcaves | Scientist uncovered a shortcut to Scraptown 2218 | -10/Subcaves | Shifting Twisted Machinery released Sub. Power Source 2219 | -10/Subcaves | Shifting Twisted Machinery released Sub. Machine Gun 2415 | -10/Subcaves | Visited triangular shrine 2426 | -10/Subcaves | Found Prototype Device 2427 | -10/Subcaves | Identified V3-11A's Pendant 2432 | -10/Subcaves | Befriended Subdweller 2638 | -10/Subcaves | Visited 4L-MR0's lab 2658 | -10/Subcaves | Found Powered Cannon 2660 | -10/Subcaves | Attached Powered Cannon, gained temporary slot: Power 2792 | -10/Subcaves | Disturbed a concealed Subdweller 2798 | -10/Subcaves | Befriended Subdweller 2845 | -10/Subcaves | Core integrity fell below 50% 3146 | -10/Subcaves | Ambushed by Subdweller buried in earth 3153 | -10/Subcaves | Befriended Subdweller 3179 | -10/Subcaves | Ambushed by Subdweller buried in earth 3285 | -10/Subcaves | Befriended Subdweller 3391 | -10/Subcaves | Entered Scraptown 3391 | -9/Scraptown | Accompanied by 3 allies 3638 | -9/Scraptown | Delivered V3-11A's Pendant to T0-NE2 in exchange for information 3887 | -9/Scraptown | Visited Cave Peace 3922 | -9/Scraptown | Visited Bundlers 4340 | -9/Scraptown | Discovered new exit (range 7) 4421 | -9/Scraptown | Visited Red Mages 4434 | -9/Scraptown | Visited The Evicted 4444 | -9/Scraptown | Visited Cyclists 4511 | -9/Scraptown | Visited TADAMA 4533 | -9/Scraptown | Visited Scrapoid Research Area 4597 | -9/Scraptown | Visited UFD Registry 4597 | -9/Scraptown | Registered with UFD as "Fluxshell" 4680 | -9/Scraptown | Entered Cyclist Reading Room 4781 | -9/Scraptown | Visited Infowarlord's Domain 4793 | -9/Scraptown | Found Exp. Sensor Array 4821 | -9/Scraptown | Visited Derelict Rescue Squad 4860 | -9/Scraptown | Visited Abandonware Association 4879 | -9/Scraptown | Learned abandonware demo "REPAIR.EXE" 4879 | -9/Scraptown | Learned abandonware demo "POISON.EXE" 5032 | -9/Scraptown | Visited DA-N13 Charitable Foundation 5047 | -9/Scraptown | Found DCF Scrap (30 items) 5123 | -9/Scraptown | Visited Research Penetration Think Tank 5168 | -9/Scraptown | Visited Junk Repository 5269 | -9/Scraptown | Visited Science Guys 5330 | -9/Scraptown | Visited Observation Area 5485 | -9/Scraptown | Met Optimus 5485 | -9/Scraptown | Accepted into 0bPrime 5573 | -9/Scraptown | Discovered new exit (range 5) 5588 | -9/Scraptown | Entered Factory 5588 | -6/Factory | Accompanied by 3 allies 5588 | -6/Factory | Evolved 8 slots: Propulsion x3, Utility x4, Weapon x1 5863 | -6/Factory | Allied Derelicts emerged from ambush trap array 5965 | -6/Factory | Build established: Skirmisher 6376 | -6/Factory | Repaired Imp. Medium Treads 6404 | -6/Factory | Discovered new exit (range 4) 6423 | -6/Factory | Identified exit to Factory 6494 | -6/Factory | Loaded intel: 8 recycling unit locations 6498 | -6/Factory | Garrison activated, responded to threat 6785 | -6/Factory | Build established: Tank 6854 | -6/Factory | Scrapoid reinforcements arrived 7314 | -6/Factory | Found Unknown Device 7314 | -6/Factory | Identified Scrap Suit 7582 | -6/Factory | Identified exit to Lower Caves 7617 | -6/Factory | Garrison activated, responded to threat 7775 | -6/Factory | Repaired Lgt. Treads 7802 | -6/Factory | Repaired Lgt. Treads 7865 | -6/Factory | Entered Lower Caves 8032 | -6/Lower Caves | Build established: Skirmisher 8184 | -6/Lower Caves | A Derelict revealed a hidden shortcut to meet someone special 8190 | -6/Lower Caves | Identified exit to Data Miner 8268 | -6/Lower Caves | Encountered a Warlord checkpoint 8607 | -6/Lower Caves | Discovered new exit (range 7) 8621 | -6/Lower Caves | Identified exit to Lower Caves 8838 | -6/Lower Caves | Learned 8 Factory zone layouts 9022 | -6/Lower Caves | Entered another Lower Caves area 9121 | -6/Lower Caves | Prototype Device suddenly appears! 9130 | -6/Lower Caves | Found Prototype Device 9130 | -6/Lower Caves | Identified Amulet of Y3-NDR 9222 | -6/Lower Caves | Joined by bewildered Wizard 9223 | -6/Lower Caves | Joined by bewildered Wizard 9224 | -6/Lower Caves | Joined by bewildered Wizard 9229 | -6/Lower Caves | Joined by bewildered Wizard 9314 | -6/Lower Caves | Discovered exit to Factory (range 5) 9334 | -6/Lower Caves | Encountered a Warlord checkpoint 9961 | -6/Lower Caves | Discovered exit to Data Miner (range 3) 10026 | -6/Lower Caves | Entered Data Miner 10026 | -6/Data Miner | Accompanied by 4 allies 10028 | -6/Data Miner | Discovered new exit (range 6) 10036 | -6/Data Miner | Identified exit to Proximity Caves 10058 | -6/Data Miner | Met Data Miner 10086 | -6/Data Miner | Learned location of Section 7 (-2) 10086 | -6/Data Miner | Acquired the access code to Warlord's prototype stash 10111 | -6/Data Miner | Received God Mode back door access code from Data Miner 10173 | -6/Data Miner | Entered Proximity Caves 10173 | -5/Proximity Caves | Accompanied by 4 allies 10229 | -5/Proximity Caves | Joined by bewildered Wizard 10258 | -5/Proximity Caves | Learned location of Armory (-4) 10715 | -5/Proximity Caves | Joined by bewildered Wizard 11068 | -5/Proximity Caves | Joined by bewildered Wizard 11069 | -5/Proximity Caves | Joined by bewildered Wizard 11148 | -5/Proximity Caves | Joined by bewildered Wizard 11149 | -5/Proximity Caves | Joined by bewildered Wizard 11419 | -5/Proximity Caves | Discovered exit to Factory (range 3) 11460 | -5/Proximity Caves | Entered Factory 11460 | -5/Factory | Accompanied by 6 allies 11460 | -5/Factory | Evolved 2 slots: Power x1, Utility x1 11461 | -5/Factory | Identified exit to Upper Caves 11461 | -5/Factory | Identified exit to Factory 11512 | -5/Factory | Joined by bewildered Wizard 11514 | -5/Factory | Joined by bewildered Wizard 11515 | -5/Factory | Joined by bewildered Wizard 11566 | -5/Factory | Joined by bewildered Wizard 11568 | -5/Factory | Joined by bewildered Wizard 11578 | -5/Factory | Joined by bewildered Wizard 11579 | -5/Factory | Joined by bewildered Wizard 11636 | -5/Factory | Garrison activated, responded to threat 11942 | -5/Factory | Garrison activated, responded to threat 12023 | -5/Factory | Joined by bewildered Wizard 12024 | -5/Factory | Joined by bewildered Wizard 12025 | -5/Factory | Joined by bewildered Wizard 12088 | -5/Factory | Garrison activated, responded to threat 12130 | -5/Factory | Lost 3 allies 12134 | -5/Factory | Lost 4 parts (1p1n2w) 12224 | -5/Factory | Loaded intel: 8 recycling unit locations 12224 | -5/Factory | Learned location of Protoforge (-2) 12269 | -5/Factory | Scrapoids reinforcements arrived? 12440 | -5/Factory | Entered Upper Caves 12511 | -5/Upper Caves | Joined by bewildered Wizard 12511 | -5/Upper Caves | Joined by bewildered Wizard 12512 | -5/Upper Caves | Joined by bewildered Wizard 12658 | -5/Upper Caves | Joined by bewildered Wizard 12709 | -5/Upper Caves | Attracted the attention of an 0b10 checkpoint 12809 | -5/Upper Caves | Learned 8 Factory zone layouts 12942 | -5/Upper Caves | Attracted the attention of an 0b10 outpost 12954 | -5/Upper Caves | Joined by bewildered Wizard 12986 | -5/Upper Caves | Lost 3 allies 13006 | -5/Upper Caves | Joined by bewildered Wizard 13007 | -5/Upper Caves | Joined by bewildered Wizard 13080 | -5/Upper Caves | Discovered new exit (range 9) 13091 | -5/Upper Caves | Identified exit to Upper Caves 13165 | -5/Upper Caves | Entered another Upper Caves area 13165 | -5/Upper Caves | Accompanied by 5 allies 13255 | -5/Upper Caves | Learned Factory trap positions 13661 | -5/Upper Caves | System corruption reached 10% 13838 | -5/Upper Caves | Attracted the attention of an 0b10 checkpoint 13956 | -5/Upper Caves | Build established: Scavenger-Skirmisher 14195 | -5/Upper Caves | Discovered new exit (range 11) 14284 | -5/Upper Caves | Joined by bewildered Wizard 14308 | -5/Upper Caves | Identified exit to Warlord 14316 | -5/Upper Caves | Entered Warlord 14316 | -5/Warlord | Accompanied by 6 allies 14378 | -5/Warlord | System corruption cleaned by Quarantine Array 14557 | -5/Warlord | Build established: Scavenger-Tank 14566 | -5/Warlord | Opened Warlord's prototype stash 14572 | -5/Warlord | Found Prototype Reactor 14572 | -5/Warlord | Identified Vortex Chain Reactor 14579 | -5/Warlord | Found Prototype Device 14579 | -5/Warlord | Identified Exp. Cloaking Device 14607 | -5/Warlord | Found Prototype Device 14607 | -5/Warlord | Identified Exp. Focal Shield 14611 | -5/Warlord | Found Prototype Processor 14611 | -5/Warlord | Identified Exp. Armor Integrity Analyzer 14742 | -5/Warlord | Found Prototype Device 15028 | -5/Warlord | Build established: Tank 15119 | -5/Warlord | Warlord's base attacked by MAIN.C 15233 | -5/Warlord | Found Prototype Energy Gun 15233 | -5/Warlord | Identified Vortex Rifle 15242 | -5/Warlord | Found Prototype Piercing Weapon 15242 | -5/Warlord | Identified Vortex Lance 15454 | -5/Warlord | Spotted B-86 Titan 15469 | -5/Warlord | Warlord forces counterattacked 15538 | -5/Warlord | Lost 10 allies 15545 | -5/Warlord | Spotted Striker 15548 | -5/Warlord | Spotted Executioner 15558 | -5/Warlord | Spotted Executioner 15611 | -5/Warlord | Lost 7 allies 15622 | -5/Warlord | Spotted Striker 15671 | -5/Warlord | Lost 8 allies 15732 | -5/Warlord | Spotted Executioner 15783 | -5/Warlord | Lost 11 allies 15794 | -5/Warlord | Warlord base infiltrated, sounded retreat 15846 | -5/Warlord | Spotted Striker 15849 | -5/Warlord | Spotted Executioner 15866 | -5/Warlord | Spotted Executioner 15886 | -5/Warlord | Lost 3 allies 15905 | -5/Warlord | Found Prototype Processor 15905 | -5/Warlord | Identified Exp. Core Analyzer 15926 | -5/Warlord | Spotted Executioner 15929 | -5/Warlord | Discovered new exit (range 9) 15929 | -5/Warlord | Spotted Striker 15940 | -5/Warlord | Identified exit to Proximity Caves 15942 | -5/Warlord | Entered Proximity Caves 16011 | -4/Proximity Caves | Joined by bewildered Wizard 16012 | -4/Proximity Caves | Joined by bewildered Wizard 16053 | -4/Proximity Caves | Joined by bewildered Wizard 16054 | -4/Proximity Caves | Joined by bewildered Wizard 16065 | -4/Proximity Caves | Spotter reported a threat 16327 | -4/Proximity Caves | Spotter reported a threat 16333 | -4/Proximity Caves | Joined by bewildered Wizard 16334 | -4/Proximity Caves | Joined by bewildered Wizard 16498 | -4/Proximity Caves | Destroyed 7 combat bots 16561 | -4/Proximity Caves | Build established: Scavenger-Tank 16690 | -4/Proximity Caves | Discovered exit to Factory (range 12) 16719 | -4/Proximity Caves | Entered Factory 16719 | -4/Factory | Accompanied by 3 allies 16719 | -4/Factory | Evolved 2 slots: Utility x2 16720 | -4/Factory | Identified exit to Extension 16720 | -4/Factory | Identified exit to Research 16721 | -4/Factory | Loaded intel: 82 trap records 16764 | -4/Factory | Joined by bewildered Wizard 16765 | -4/Factory | Joined by bewildered Wizard 16767 | -4/Factory | Loaded intel: 8 recycling unit locations 16836 | -4/Factory | Joined by bewildered Wizard 17027 | -4/Factory | Entered Extension 17027 | -4/Extension | Accompanied by 5 allies 17073 | -4/Extension | Rescued a captive Derelict 17107 | -4/Extension | Rescued a captive Derelict 17206 | -4/Extension | Rescued A7 17294 | -4/Extension | Rescued a captive Derelict 17579 | -4/Extension | Build established: Tank 17672 | -4/Extension | Spotted B-86 Titan 17678 | -4/Extension | Destroyed B-86 Titan 17696 | -4/Extension | Discovered exit to Research (range 15) 18060 | -4/Extension | Lost 3 allies 18183 | -4/Extension | Build established: Commander-Tank 18285 | -4/Extension | Rescued a captive Derelict 18286 | -4/Extension | Rescued a captive Derelict 18337 | -4/Extension | Discovered exit to Research (range 10) 18339 | -4/Extension | Discovered new exit (range 6) 18368 | -4/Extension | Identified exit to Cetus 18392 | -4/Extension | Entered Cetus 18392 | -4/Cetus | Accompanied by 12 allies (A7) 18397 | -4/Cetus | Acquired a Cetus Manufacturing Module code from A7 18413 | -4/Cetus | Spotted Cetus Guard 18413 | -4/Cetus | Spotted Cetus Guard 18414 | -4/Cetus | Spotted Cetus Guard 18415 | -4/Cetus | Spotted Cetus Guard 18420 | -4/Cetus | Allies destroyed Cetus Guard 18421 | -4/Cetus | Destroyed Cetus Guard 18423 | -4/Cetus | Allies destroyed Cetus Guard 18423 | -4/Cetus | Allies destroyed Cetus Guard 18522 | -4/Cetus | Started Cetus Manufacturing Module 18538 | -4/Cetus | Escorted A7 to Cetus Mainframe 18547 | -4/Cetus | Manufactured an Enhanced Grunt 18570 | -4/Cetus | Discovered new exit (range 16) 18572 | -4/Cetus | Manufactured an Enhanced Grunt 18593 | -4/Cetus | Identified exit to Archives 18597 | -4/Cetus | Manufactured an Enhanced Grunt 18622 | -4/Cetus | Manufactured an Enhanced Grunt 18647 | -4/Cetus | Manufactured an Enhanced Grunt 18726 | -4/Cetus | Spotted Cetus Guard 18726 | -4/Cetus | Spotted Cetus Guard 18728 | -4/Cetus | Spotted Cetus Guard 18729 | -4/Cetus | Spotted Cetus Guard 18736 | -4/Cetus | Destroyed Cetus Guard 18742 | -4/Cetus | Destroyed Cetus Guard 18743 | -4/Cetus | Allies destroyed Cetus Guard 18744 | -4/Cetus | Allies destroyed Cetus Guard 18752 | -4/Cetus | Discovered exit to Research (range 15) 18762 | -4/Cetus | Met Revision 17 18948 | -4/Cetus | Entered Archives 18948 | -4/Archives | Accompanied by 15 allies (A7) 18953 | -4/Archives | Received a hacking code to weaken MAIN.C 19007 | -4/Archives | Discovered exit to Research (range 15) 19062 | -4/Archives | Found Prototype Device 19062 | -4/Archives | Identified Exp. Thermal Shield 19074 | -4/Archives | Discovered new exit (range 16) 19142 | -4/Archives | Discovered new exit (range 14) 19388 | -4/Archives | Identified exit to Hub_04(d) 19445 | -4/Archives | Entered Hub_04(d) 19445 | -4/Hub_04(d) | Accompanied by 13 allies 19841 | -4/Hub_04(d) | Lost 9 allies 19841 | -4/Hub_04(d) | Allied Derelicts emerged from ambush trap array 19942 | -4/Hub_04(d) | Network Hub disabled 19945 | -4/Hub_04(d) | First assault squad dispatched 19966 | -4/Hub_04(d) | Incoming assault squad redirected 19974 | -4/Hub_04(d) | Incoming assault squad redirected 20060 | -4/Hub_04(d) | Lost 4 allies 20075 | -4/Hub_04(d) | Discovered exit to Research (range 14) 20093 | -4/Hub_04(d) | Build established: Scavenger-Tank 20152 | -4/Hub_04(d) | Spotted Lightning 20153 | -4/Hub_04(d) | Spotted Lightning 20156 | -4/Hub_04(d) | Spotted Lightning 20183 | -4/Hub_04(d) | System corruption reached 10% 20189 | -4/Hub_04(d) | Entered Research 20189 | -3/Research | Evolved 2 slots: Utility x2 20385 | -3/Research | Joined by bewildered Wizard 20386 | -3/Research | Joined by bewildered Wizard 20389 | -3/Research | Revision forces began assault on 0b10 20402 | -3/Research | Met up with Revision 17++ 20428 | -3/Research | Fabricated Centrium Heavy Armor Plating (x1) 20432 | -3/Research | Joined by bewildered Wizard 20433 | -3/Research | Joined by bewildered Wizard 20469 | -3/Research | Joined by bewildered Wizard 20470 | -3/Research | Joined by bewildered Wizard 20889 | -3/Research | Research terminal network offline 21107 | -3/Research | Spotted Striker 21111 | -3/Research | Spotted Striker 21119 | -3/Research | Spotted Executioner 21120 | -3/Research | Spotted Striker 21121 | -3/Research | Destroyed Striker 21166 | -3/Research | Lost 4 allies 21177 | -3/Research | Discovered new exit (range 6) 21183 | -3/Research | Identified exit to Research 21426 | -3/Research | Spotted Striker 21444 | -3/Research | Destroyed Striker 21472 | -3/Research | Lost 3 allies 21497 | -3/Research | Found Prototype Device 21497 | -3/Research | Identified Adv. Kinecellerator 21608 | -3/Research | Scrapoid reinforcements arrived 21688 | -3/Research | Spotted Striker 21693 | -3/Research | Allies destroyed Striker 21694 | -3/Research | Spotted Executioner 21699 | -3/Research | Allies destroyed Executioner 21720 | -3/Research | Found Exp. Core Analyzer 21757 | -3/Research | Found Fusion Bomb Launcher 22077 | -3/Research | Discovered new exit (range 5) 22082 | -3/Research | Identified exit to Quarantine 22101 | -3/Research | Entered Quarantine 22101 | -3/Quarantine | Accompanied by 2 allies 22156 | -3/Quarantine | Cryocooling Duct disabled 22171 | -3/Quarantine | Ambient heat levels rising (+20) 22171 | -3/Quarantine | Non-combat units ordered to evacuate 22290 | -3/Quarantine | Found Alien Artifact 22290 | -3/Quarantine | Identified Phase Armor 22424 | -3/Quarantine | System corruption reached 10% 22460 | -3/Quarantine | Lost 3 allies 22974 | -3/Quarantine | Discovered exit to Research (range 7) 23086 | -3/Quarantine | Entered Research 23086 | -2/Research | Evolved 2 slots: Utility x2 23243 | -2/Research | Joined by bewildered Wizard 23245 | -2/Research | Joined by bewildered Wizard 23246 | -2/Research | Joined by bewildered Wizard 23255 | -2/Research | Discovered new exit (range 7) 23267 | -2/Research | Identified exit to Access 23336 | -2/Research | First assault squad dispatched 23338 | -2/Research | Joined by bewildered Wizard 23386 | -2/Research | Entered Access 23386 | -1/Access | Accompanied by 4 allies 23386 | -1/Access | Evolved 2 slots: Utility x2 23390 | -1/Access | Identified Wardrone Bay 23569 | -1/Access | Lost 3 allies 23741 | -1/Access | Build established: Scavenger-Skirmisher 25005 | -1/Access | Discovered new exit (range 7) 25015 | -1/Access | Identified exit to Command 25018 | -1/Access | Entered Command 25130 | -1/Command | Build established: Scavenger-Tank 25154 | -1/Command | Spotted B-99 Colossus 25268 | -1/Command | First assault squad dispatched 25666 | -1/Command | Spotted M Guard 25668 | -1/Command | Spotted Combat Programmer 25669 | -1/Command | Spotted Combat Programmer 25674 | -1/Command | System corruption reached 10% 25688 | -1/Command | Spotted M Guard 25694 | -1/Command | Core integrity fell below 50% 25703 | -1/Command | Released all parts (13) 25716 | -1/Command | Core integrity fell below 20% 25742 | -1/Command | Lost 17 parts (3p4n6u4w) 25746 | -1/Command | Destroyed by Combat Programmer with EMDS Last Messages --------------- 25707_ Combat Programmer knocked back. 25709_ The unstable cave ceiling collapses. 25709_ Acquired Imp. Antigrav System. 25709_ Penetrated by EMDS Slug. 25710_ The unstable cave ceiling collapses. 25711_ Penetrated by EMDS Slug. 25711_ Imp. Antigrav System destroyed. 25712_ Penetrated by EMDS Slug. 25715_ Penetrated by Slug. 25715_ Penetrated by EMDS Slug. 25717_ GXSFFHLA>GP:6OQQCIU6BKGXW8JMUG 25719_ Slug penetrates Wall. 25725_ Acquired 15 matter. 25726_ EMDS Slug penetrates Wall. 25729_ Penetrated by Slug. 25732_ Penetrated by EMDS Slug. 25740_ Acquired Field Propulsion Array. 25741_ Penetrated by EMDS Slug. 25742_ Acquired Field Propulsion Array. 25743_ Penetrated by EMDS Slug. Map ----- +----------------------------------------------------+ | ## # # *### ######## | | ?# [ #?# #??????# | | ?### # ##?#####??????# | | ?# ##?????????????# | | ?# ###########??????????????# | | ?# ?????????????????????????# #######+###### | | ?# ?????????????????????????# # #??? | | ?# ?????????????????????????# + #??? | | ?# ??????????????????????????# # #??? | | ?# ?????????????????########## # [ #??? | | ?# ?????????????????# ## # !!! #??? | | ?# ??????????????????# ## # !! #??? | | ?# ??????????????????# ## !# !! #??? | | ?? ??????????????????# ## ![# #??? | | ?????????????????????# * ## !!=###########??? | | ?????????????????????# #####[%#????????????? | | ?????????????????????# #???##|#????????????? | | ?????????????????????####+#########=#????????????? | | ???????????????????????# #????????????? | | ???????????????????????# ######### #????????????? | | ???????????????????????# ######### #????????????? | | ???????????????????????# # =! ## #????????????? | | ???????????????????????# # ! ##%##??????####?# | | ???????????????????????# # ! ##%"##???## # # # | | ???????????????????????# # ##%""#### | | ???????????????????????# @p ## %+ | | ???????????????????????# p# ## % + | | ???????????????????????# ######### + ^ | | ???????????????????????# + | | ???????????????????????# ###########"#### ^ | | ???????????????????????# #???????# #?## # # # | | ???????????????????????# #???????# #????#?#?? | | ???????????????????????# #???????# #????????? | | ???????????????????????# #???????# #????????? | | ???????????????????????# #???????# #????????? | | ???????????????????????# #???????# =#????????? | | ???????????????????????# #???????# #????????? | | ???????????????????????# ????????# #????????? | | ???????????????????????# ????????# #????????? | | ???????????????????????# ????????# !#????????? | | ???????????????????????# ????????# #????????? | | ???????????????????????# ????????# #????????? | | ???????????????????????? ????????#######????????? | | ???????????????????????? ???????????????????????? | | ???????????????????????? ???????????????????????? | | ?????????????????????????????????????????????????? | | ?????????????????????????????????????????????????? | | ?????????????????????????????????????????????????? | | ?????????????????????????????????????????????????? | | ?????????????????????????????????????????????????? | +----------------------------------------------------+ Best States ------------- Heat Dissipation 109 Energy Generation 55 Energy Capacity 700 Matter Stores 300 Matter Capacity 300 Sight Range 23 Robot Scan Range 20 Terrain Scan Range 14 Terrain Scan Density 10 Jamming Range 16 Cloak Strength 4 Armor Coverage 1200 Phase Shifting 15 Evasion (%) 55 Targeting Accuracy 8 Melee Accuracy 8 Core Analysis 8 Recoil Reduction 5 Kinecelleration 50 Offensive Hacking 14 Item Schematics ----------------- Combat Drone Bay | -6/Data Miner | Free Lgt. Regenerative Plating | -6/Data Miner | Free Enh. Flexi-carbon Leg | -6/Data Miner | Free Prc. Energy Filter | -6/Data Miner | Free Hvy. Gatling Laser | -6/Data Miner | Free Imp. Heavy Treads | -6/Data Miner | Free Lrn. Terrain Scanner | -6/Data Miner | Free Matter Neutralizer | -6/Data Miner | Free Hyp. Coil Gun | -6/Data Miner | Free Centrium Wheel | -6/Data Miner | Free Adv. Remote Datajack | -6/Data Miner | Free Robot Schematics ------------------ B-48 Gladiator | -6/Data Miner | Free D-63 Destroyer | -6/Data Miner | Free A-15 Conveyor | -6/Data Miner | Free C-35 Carver | -6/Data Miner | Free Y-64 Sentinel | -6/Data Miner | Free L-61 Swordsman | -6/Data Miner | Free M-30 Cleanser | -6/Data Miner | Free Fabricated ------------ Centrium Heavy Armor Plating | x1 | -3/Research | Preloaded Repaired ---------- Seismic Detector | 45% | -10/Materials Imp. Medium Treads | 43% | -6/Factory Lgt. Treads | 15% | -6/Factory Lgt. Treads | 35% | -6/Factory Studied --------- Fusion Bomb Launcher | -3/Quarantine | Hacked Alien Tech Used ----------------- Phase Armor Achievements -------------- None Challenges ------------ None Game ------ Seed ShockboltActiveMachine Manual? 0 Play Time 03:26:03 Cumulative 376.2 hours Start 2026.03.07 @ 16:07:15 End 2026.03.10 @ 00:33:53 Sessions 3 Manual Loads 0 Difficulty Rogue Special Mode None Game No. 235 Rogue 235 Adventurer 0 Explorer 0 Win Type - Total 14 Types 9/1/2/1/0/0/0/1/0/0 Lore% 93 Gallery% 80 Achievement% 70 Wizard Run 0 Options --------- Layout 1 ASCII 0 Keyboard 0 Movement Mouse Keybinds 0 Fullscreen 2 Font 32/SmallcapsGlow Map View 50x35 Zoom Use 0% Tactical HUD 1 Map Filters NONE Filters NONE Steam 1 RUN: ef0bb877-372c-443a-88b5-13c2ab892c5c